[Event "LEM Niedersachsen-Meister 2025"]
[Site "Verden"]
[Date "2025.01.04"]
[Round "6.11"]
[White "Plischki, Sebastian"]
[Black "Kieselbach, Jannik"]
[Result "1-0"]
[ECO "D37"]
[WhiteElo "2323"]
[BlackElo "1979"]
[Annotator "TA"]
[PlyCount "119"]
[EventDate "2024.12.27"]
[EventType "swiss"]
[EventCountry "GER"]
[SourceTitle "playchess.com"]
[Source "ChessBase"]
[SourceQuality "1"]
[TimeControl "40/5400+30:1800+30"]

{[%evp 17,119,19,57,50,117,11,12,16,11,12,15,9,50,49,44,42,37,31,33,28,41,28,35,10,24,17,16,22,16,0,42,21,31,0,12,8,16,12,23,17,18,22,28,0,65,63,64,50,78,79,81,47,90,83,94,96,114,64,177,122,214,238,247,233,229,179,189,129,259,227,287,266,372,285,322,338,224,217,293,318,328,260,323,252,763,748,1687,1611,4622,4618,29969,4133,4627,4404,29960,29957,4598,6522,29978,29979,29979,29975,29975,29975]} 1. d4 {[%emt 0:00:02]} Nf6 {[%emt 0:00:09]} 2. c4 {[%emt 0:00:28]} e6 {[%emt 0:00:09]} 3. Nc3 {[%emt 0:00:06]} Bb4 {[%emt 0:00:22]} 4. Qc2 {[%emt 0:00:13]} c5 {[%emt 0:01:15]} 5. dxc5 {[%emt 0:00:10]} O-O {[%emt 0:00:31]} 6. a3 {[%emt 0:00:06]} Bxc5 {[%emt 0:00:34]} 7. Nf3 {[%emt 0:00:10]} d5 {[%emt 0:05:28]} 8. Bf4 {[%emt 0:01:30]} Nc6 {[%emt 0:03:07]} 9. e3 {[%emt 0:00:16]} Qe7 {[%emt 0:33:09]} 10. Bg5 {[%emt 0:11:01][%cal Bf4g5,Bg5h4,Bh4g3][%mdl 32]} d4 {[%emt 0:12:39]} (10... Rd8 $14) 11. exd4 {[%emt 0:03:45]} (11. Ne4 $16) 11... Nxd4 $11 {[%emt 0:05:48]} 12. Nxd4 {[%emt 0:00:12]} Bxd4 {[%emt 0:00:10]} 13. O-O-O {[%emt 0:11:18]} Qc5 {[%emt 0:07:12]} 14. Bh4 {[%emt 0:09:14]} Qe5 {[%emt 0:07:00]} 15. Bg3 {[%emt 0:03:39]} Qg5+ {[%emt 0:00:47]} 16. Kb1 $1 {[%emt 0:05:49]} Bxc3 {[%emt 0:00:26]} 17. Qxc3 {[%emt 0:00:16]} Ne4 {[%emt 0:00:49]} 18. Qc2 {[%emt 0:01:04]} Nxg3 {[%emt 0:00:43]} 19. hxg3 {[%emt 0:00:07]} h6 {[%emt 0:01:00]} 20. Be2 {[%emt 0:01:47]} e5 {[%emt 0:08:37]} 21. Bf3 {[%emt 0:05:10]} Bf5 {[%emt 0:01:03]} 22. Be4 $1 {[%emt 0:00:06]} Bxe4 {[%emt 0:00:05]} 23. Qxe4 {[%emt 0:00:04][%cal Od1d7]} b6 {[%emt 0:03:02]} 24. Rd5 {[%emt 0:06:13]} Rae8 {[%emt 0:01:46]} 25. Qe2 {[%emt 0:06:08]} Qf5+ {[%emt 0:00:47]} 26. Ka2 {[%emt 0:00:15]} f6 {[%emt 0:06:52]} 27. Rhd1 {[%emt 0:01:31]} Qe6 {[%emt 0:00:00]} 28. Rd6 {[%emt 0:01:45]} Qf7 {[%emt 0:00:00]} 29. R1d5 {[%emt 0:04:26]} Re7 {[%emt 0:00:00]} 30. b4 {[%emt 0:00:56]} Re6 {[%emt 0:00:00]} (30... e4 $11) 31. Rd7 $14 {[%emt 0:01:00]} Re7 {[%emt 0:00:00]} 32. Qd3 $36 {[%emt 0:00:49][%mdl 2048] White fights for an advantage.} Rfe8 {[%emt 0:00:00] Black is weak on the light squares} 33. Rxe7 {[%emt 0:07:32]} Rxe7 $16 {[%emt 0:00:00][%mdl 4096] Endgame KQR-KQR} 34. Kb3 {[%emt 0:03:26]} g6 {[%emt 0:00:12]} 35. g4 {[%emt 0:01:01]} Kg7 {[%emt 0:00:27]} 36. Rd6 {[%emt 0:01:48]} Rc7 {[%emt 0:02:32]} 37. Qd5 {[%emt 0:01:33] White is more active.} (37. b5 $16) 37... Qxd5 {[%emt 0:00:47]} (37... h5 $14) 38. cxd5 $14 {[%emt 0:03:06] KR-KR} (38. Rxd5 Kf7 $16) 38... Kf7 {[%emt 0:00:40]} (38... b5 $16 39. a4 bxa4+ 40. Kxa4 f5) 39. Rc6 $18 {[%emt 0:00:09]} Rd7 {[%emt 0:00:07]} 40. Kc4 {[%emt 0:00:11]} Ke7 {[%emt 0:01:08]} 41. Re6+ {[%emt 0:30:52]} Kf7 {[%emt 0:30:16]} 42. g3 {[%emt 0:00:36]} ({Better is} 42. a4 $18) 42... Re7 {[%emt 0:00:00]} (42... Rd8 $16 {might work better.} 43. f4 exf4) 43. Rd6 {[%emt 0:00:00]} Rc7+ {[%emt 0:00:00]} 44. Kb5 {[%emt 0:00:00]} Ke7 {[%emt 0:00:00]} 45. Re6+ {[%emt 0:00:00]} Kf7 {[%emt 0:00:00]} 46. a4 {[%emt 0:00:00]} h5 {[%emt 0:00:00]} 47. gxh5 {[%emt 0:00:00]} gxh5 {[%emt 0:00:00] [#]} 48. f4 $1 {[%emt 0:00:00]} exf4 {[%emt 0:00:00]} 49. gxf4 {[%emt 0:00:00]} Rc1 {[%emt 0:00:00]} 50. Re3 {[%emt 0:00:00] f5 is the strong threat.} Rf1 $2 {[%emt 0:00:00]} (50... a5 51. Kxb6 axb4) 51. d6 {[%emt 0:00:00]} Rxf4 {[%emt 0:00:00]} 52. Re7+ {[%emt 0:00:00]} Kf8 {[%emt 0:00:00]} 53. Rxa7 {[%emt 0:00:13]} Rd4 {[%emt 0:00:00]} 54. Kc6 {[%emt 0:01:44]} (54. Kxb6 Rxd6+ 55. Kc5 Rd2 $18) (54. Ra8+ $142 Kg7 55. Kc6 (55. Kxb6 Rxd6+ 56. Kc5 Rd1 $18) 55... Rc4+ 56. Kd5 (56. Kxb6 Rxb4+ 57. Kc5 Rb7 $18) 56... Rc3 57. d7 Rd3+ 58. Kc6 Rxd7 59. Kxd7) 54... Rc4+ {[%emt 0:00:00]} 55. Kxb6 {[%emt 0:00:16]} Rxb4+ {[%emt 0:00:00]} 56. Kc5 {[%emt 0:00:40]} Rb8 {[%emt 0:00:49]} 57. a5 {[%emt 0:00:57][%cal Ba4a5,Ba5a6,Ba6a7][%mdl 32] Intending a6 and mate.} Ke8 {[%emt 0:01:18]} 58. a6 {[%emt 0:00:24]} Rb1 {[%emt 0:01:02]} 59. Re7+ {[%emt 0:00:45]} Kd8 {[%emt 0:00:31]} 60. a7 {[%emt 0:00:08]} 1-0

[Event "LEM Niedersachsen-Meister 2025"]
[Site "Verden"]
[Date "2025.01.04"]
[Round "6.12"]
[White "Meiwes, Thore"]
[Black "Schiller, Jan-Hendrik"]
[Result "1-0"]
[ECO "D02"]
[WhiteElo "2120"]
[BlackElo "1952"]
[Annotator "NA RC"]
[PlyCount "105"]
[EventDate "2024.12.27"]
[EventType "swiss"]
[EventCountry "GER"]
[SourceTitle "playchess.com"]
[Source "ChessBase"]
[SourceQuality "1"]
[TimeControl "40/5400+30:1800+30"]

1. d4 {[%emt 0:00:01]} d5 {[%emt 0:00:17]} 2. Nf3 {[%emt 0:00:04]} Nf6 {[%emt 0:00:19]} 3. Bf4 {[%emt 0:00:05]} e6 {[%emt 0:00:41]} 4. e3 {[%emt 0:00:06]} Bd6 {[%emt 0:01:01]} 5. Nbd2 {[%emt 0:00:09]} O-O {[%emt 0:01:39]} 6. Bd3 {[%emt 0:00:06]} b6 {[%emt 0:00:51]} 7. Ne5 {[%emt 0:00:34]} c5 {[%emt 0:02:44]} 8. c3 {[%emt 0:00:32]} Ba6 {[%emt 0:01:47]} 9. Bxa6 {[%emt 0:00:21]} Nxa6 {[%emt 0:00:12]} 10. Qe2 {[%emt 0:00:04]} Nb8 {[%emt 0:00:55]} 11. Rd1 {[%emt 0:00:28]} Qc7 {[%emt 0:01:22]} 12. O-O {[%emt 0:00:41]} Nc6 {[%emt 0:04:05]} 13. Nxc6 {[%emt 0:03:15]} Bxf4 {[%emt 0:01:24]} 14. exf4 {[%emt 0:00:10]} Qxc6 {[%emt 0:00:17]} 15. Nf3 {[%emt 0:00:25]} Qc7 {[%emt 0:04:15]} 16. Ne5 {[%emt 0:00:21]} cxd4 {[%emt 0:03:10]} 17. Rxd4 {[%emt 0:00:30]} Rac8 {[%emt 0:10:18]} 18. Re1 {[%emt 0:00:22]} Ne4 {[%emt 0:04:25]} 19. g3 {[%emt 0:07:47]} Nd6 {[%emt 0:03:49]} 20. h4 {[%emt 0:08:29]} b5 {[%emt 0:04:05]} 21. h5 {[%emt 0:04:27]} h6 {[%emt 0:05:10]} 22. g4 {[%emt 0:01:02]} Qe7 {[%emt 0:04:53]} 23. Kg2 {[%emt 0:02:26]} Rc7 {[%emt 0:05:56]} 24. Rh1 {[%emt 0:07:50]} Rb8 {[%emt 0:05:20]} 25. Rh3 {[%emt 0:09:12]} Rb6 {[%emt 0:05:16]} 26. Re3 {[%emt 0:15:35]} Nc4 {[%emt 0:04:32]} 27. Nxc4 {[%emt 0:00:29]} Rxc4 {[%emt 0:00:25]} 28. f5 {[%emt 0:00:56]} Qf6 {[%emt 0:03:29]} 29. fxe6 {[%emt 0:02:11]} fxe6 {[%emt 0:04:33]} 30. Rf3 {[%emt 0:03:05]} Qg5 {[%emt 0:00:43]} 31. Rff4 {[%emt 0:01:13]} Rc8 {[%emt 0:04:33]} 32. Qf3 {[%emt 0:02:27]} Rb7 {[%emt 0:00:58]} 33. Rd1 {[%emt 0:04:00]} Rbb8 {[%emt 0:02:29]} 34. Qg3 {[%emt 0:02:44]} Rf8 {[%emt 0:01:25]} 35. Rfd4 {[%emt 0:00:09]} Qf6 {[%emt 0:01:27]} 36. f4 {[%emt 0:00:57]} Rbc8 {[%emt 0:02:18]} 37. Qe3 {[%emt 0:25:47]} Rc4 {[%emt 0:01:47]} 38. Kg3 {[%emt 0:00:00]} Rxd4 {[%emt 0:00:37]} 39. Rxd4 {[%emt 0:00:00]} a6 {[%emt 0:00:47]} 40. a4 {[%emt 0:00:00]} Re8 {[%emt 0:04:23]} 41. axb5 {[%emt 0:16:48]} e5 {[%emt 0:03:47]} 42. Rxd5 {[%emt 0:00:00]} exf4+ {[%emt 0:00:36]} 43. Qxf4 {[%emt 0:00:00]} Qe6 {[%emt 0:01:23]} 44. Qd2 {[%emt 0:00:00]} Qb6 {[%emt 0:02:03]} 45. Qd4 {[%emt 0:00:00]} Qb8+ {[%emt 0:00:19]} 46. Kh3 {[%emt 0:00:00]} Rf8 {[%emt 0:01:46]} 47. Qe5 {[%emt 0:00:00]} Qa7 {[%emt 0:04:13]} 48. Qe6+ {[%emt 0:00:00]} Kh8 {[%emt 0:00:13]} 49. b6 {[%emt 0:00:00]} Qb8 {[%emt 0:00:32]} 50. Qd6 {[%emt 0:00:00]} Qe8 {[%emt 0:00:25]} 51. Re5 {[%emt 0:00:00]} Rf3+ {[%emt 0:02:39]} 52. Kg2 {[%emt 0:00:00]} Qa8 {[%emt 0:00:57]} 53. Qd5 {[%emt 0:00:00]} 1-0

[Event "LEM Niedersachsen-Meister 2025"]
[Site "Verden"]
[Date "2025.01.04"]
[Round "6.13"]
[White "ter Stal, Lars"]
[Black "Sreyas Payyappat"]
[Result "0-1"]
[ECO "B12"]
[WhiteElo "1815"]
[BlackElo "2115"]
[Annotator "NA RC"]
[PlyCount "56"]
[EventDate "2024.12.27"]
[EventType "swiss"]
[EventCountry "GER"]
[SourceTitle "playchess.com"]
[Source "ChessBase"]
[SourceQuality "1"]
[TimeControl "40/5400+30:1800+30"]

1. e4 {[%emt 0:00:03]} c6 {[%emt 0:00:03]} 2. d4 {[%emt 0:00:47]} d5 {[%emt 0:00:05]} 3. f3 {[%emt 0:00:20]} Qb6 {[%emt 0:00:08]} 4. Nc3 {[%emt 0:00:30]} dxe4 {[%emt 0:00:11]} 5. fxe4 {[%emt 0:00:10]} e5 {[%emt 0:00:09]} 6. Nf3 {[%emt 0:00:13]} exd4 {[%emt 0:00:08]} 7. Nxd4 {[%emt 0:03:03]} Bc5 {[%emt 0:00:18]} 8. Na4 {[%emt 0:01:16]} Qa5+ {[%emt 0:00:07]} 9. c3 {[%emt 0:00:53]} Bd6 {[%emt 0:00:17]} 10. Nf3 {[%emt 0:11:37]} Be7 {[%emt 0:00:09]} 11. b4 {[%emt 0:11:41]} Qc7 {[%emt 0:04:44]} 12. Be3 {[%emt 0:07:44]} Nf6 {[%emt 0:04:38]} 13. Bd3 {[%emt 0:01:26]} Bg4 {[%emt 0:02:30]} 14. O-O {[%emt 0:04:04]} Nbd7 {[%emt 0:01:14]} 15. Qe1 {[%emt 0:07:07]} O-O {[%emt 0:04:01]} 16. Nd4 {[%emt 0:04:28]} Ne5 {[%emt 0:19:43]} 17. Bc2 {[%emt 0:03:48]} Rfe8 {[%emt 0:03:41]} 18. Nb2 {[%emt 0:07:18]} Ng6 {[%emt 0:04:48]} 19. Nf5 {[%emt 0:04:05]} Bxf5 {[%emt 0:05:31]} 20. exf5 {[%emt 0:00:48]} Ng4 {[%emt 0:01:23]} 21. g3 {[%emt 0:01:52]} Bf6 {[%emt 0:07:56]} 22. fxg6 {[%emt 0:03:54]} Rxe3 {[%emt 0:00:50]} 23. gxf7+ {[%emt 0:00:56]} Kf8 {[%emt 0:01:06]} 24. Qd2 {[%emt 0:01:12]} Bxc3 {[%emt 0:01:26]} 25. Qg2 {[%emt 0:00:39]} Bxb2 {[%emt 0:01:19]} 26. Rad1 {[%emt 0:01:01]} Qe5 {[%emt 0:05:43]} 27. Qd2 {[%emt 0:04:07]} Nf6 {[%emt 0:11:26]} 28. Qd8+ {[%emt 0:03:31]} Rxd8 {[%emt 0:00:19]} 0-1

[Event "LEM Niedersachsen-Meister 2025"]
[Site "Verden"]
[Date "2025.01.04"]
[Round "6.14"]
[White "Wilmink, Anna"]
[Black "Gaertner, Alessandro"]
[Result "1/2-1/2"]
[ECO "B15"]
[WhiteElo "2033"]
[BlackElo "1970"]
[Annotator "NA RC"]
[PlyCount "72"]
[EventDate "2024.12.27"]
[EventType "swiss"]
[EventCountry "GER"]
[SourceTitle "playchess.com"]
[Source "ChessBase"]
[SourceQuality "1"]
[TimeControl "40/5400+30:1800+30"]

1. e4 {[%emt 0:00:02]} c6 {[%emt 0:00:12]} 2. d4 {[%emt 0:00:12]} d5 {[%emt 0:00:06]} 3. Nc3 {[%emt 0:00:09]} dxe4 {[%emt 0:00:11]} 4. Nxe4 {[%emt 0:00:05]} Nf6 {[%emt 0:00:07]} 5. Nxf6+ {[%emt 0:00:06]} exf6 {[%emt 0:00:04]} 6. c3 {[%emt 0:00:09]} Bd6 {[%emt 0:00:21]} 7. Bd3 {[%emt 0:00:08]} O-O {[%emt 0:00:16]} 8. Qc2 {[%emt 0:00:13]} Re8+ {[%emt 0:00:51]} 9. Ne2 {[%emt 0:00:07]} h5 {[%emt 0:00:28]} 10. O-O {[%emt 0:00:07]} h4 {[%emt 0:00:56]} 11. Nf4 {[%emt 0:00:32]} Nd7 {[%emt 0:06:06]} 12. Qd1 {[%emt 0:02:11]} Nf8 {[%emt 0:10:49]} 13. Bd2 {[%emt 0:09:11]} g6 {[%emt 0:05:39]} 14. Qc2 {[%emt 0:05:12]} f5 {[%emt 0:05:37]} 15. Rfe1 {[%emt 0:07:36]} Ne6 {[%emt 0:14:25]} 16. Nxe6 {[%emt 0:05:07]} Bxe6 {[%emt 0:01:15]} 17. Re2 {[%emt 0:05:26]} Qf6 {[%emt 0:30:38]} 18. h3 {[%emt 0:11:17]} f4 {[%emt 0:08:29]} 19. f3 {[%emt 0:08:57]} Re7 {[%emt 0:04:18]} 20. Kh1 {[%emt 0:04:57]} Rae8 {[%emt 0:02:26]} 21. Be1 {[%emt 0:04:47]} Qg5 {[%emt 0:02:26]} 22. Re4 {[%emt 0:04:51]} Kg7 {[%emt 0:03:14]} 23. Qf2 {[%emt 0:01:57]} Rh8 {[%emt 0:01:07]} 24. Qf1 {[%emt 0:01:02]} Bf5 {[%emt 0:01:18]} 25. Rxe7 {[%emt 0:00:10]} Bxe7 {[%emt 0:00:06]} 26. Bd2 {[%emt 0:02:22]} Bf6 {[%emt 0:00:50]} 27. b4 {[%emt 0:00:44]} Rd8 {[%emt 0:00:43]} 28. Re1 {[%emt 0:04:02]} Be6 {[%emt 0:00:52]} 29. Re4 {[%emt 0:01:57]} Bxa2 {[%emt 0:00:25]} 30. Bxf4 {[%emt 0:00:55]} Qh5 {[%emt 0:00:37]} 31. Bc4 {[%emt 0:02:52]} Bxc4 {[%emt 0:00:20]} 32. Qxc4 {[%emt 0:00:03]} Qd5 {[%emt 0:00:32]} 33. Qe2 {[%emt 0:01:12]} a5 {[%emt 0:00:29]} 34. bxa5 {[%emt 0:09:10]} Qxa5 {[%emt 0:00:22]} 35. Qb2 {[%emt 0:00:46]} c5 {[%emt 0:00:43]} 36. Be5 {[%emt 0:02:03]} cxd4 {[%emt 0:00:30]} 1/2-1/2

[Event "LEM Niedersachsen-Meister 2025"]
[Site "Verden"]
[Date "2025.01.04"]
[Round "6.15"]
[White "de Vries, Carsten"]
[Black "Celik, Abdullah"]
[Result "1/2-1/2"]
[ECO "B51"]
[WhiteElo "1898"]
[BlackElo "2032"]
[Annotator "RC"]
[PlyCount "132"]
[EventDate "2024.12.27"]
[EventType "swiss"]
[EventCountry "GER"]
[SourceTitle "playchess.com"]
[Source "ChessBase"]
[SourceQuality "1"]
[TimeControl "40/5400+30:1800+30"]

1. e4 {[%emt 0:00:30]} c5 {[%emt 0:04:34]} 2. Nf3 {[%emt 0:00:05]} d6 {[%emt 0:00:06]} 3. Bb5+ {[%emt 0:00:16]} Nc6 {[%emt 0:00:04]} 4. e5 {[%emt 0:04:17]} Bd7 {[%emt 0:07:36]} 5. exd6 {[%emt 0:05:20]} e6 {[%emt 0:02:01]} 6. O-O {[%emt 0:01:05]} Bxd6 {[%emt 0:00:55]} 7. Nc3 {[%emt 0:01:19]} Nf6 {[%emt 0:00:07]} 8. a4 {[%emt 0:01:47]} O-O {[%emt 0:00:30]} 9. d3 {[%emt 0:00:22]} h6 {[%emt 0:01:26]} 10. Ne4 {[%emt 0:01:38]} Be7 {[%emt 0:03:18]} 11. Be3 {[%emt 0:02:30]} b6 {[%emt 0:02:34]} 12. Qe2 {[%emt 0:01:22]} Qc7 {[%emt 0:03:44]} 13. Qd2 {[%emt 0:02:41]} Rfe8 {[%emt 0:03:10]} 14. Bf4 {[%emt 0:02:00]} Nxe4 {[%emt 0:10:58]} 15. dxe4 {[%emt 0:00:39]} Qb7 {[%emt 0:00:02]} 16. e5 {[%emt 0:04:37]} Red8 {[%emt 0:06:50]} 17. c3 {[%emt 0:01:55]} Na5 {[%emt 0:01:25]} 18. Qe2 {[%emt 0:02:46]} a6 {[%emt 0:01:48]} 19. Bxd7 {[%emt 0:01:34]} Rxd7 {[%emt 0:00:03]} 20. c4 {[%emt 0:08:25]} Rad8 {[%emt 0:00:33]} 21. Qc2 {[%emt 0:05:26]} Rd3 {[%emt 0:04:04]} 22. Rfe1 {[%emt 0:09:37]} Qd7 {[%emt 0:10:10]} 23. h3 {[%emt 0:03:44]} g5 {[%emt 0:02:40]} 24. Be3 {[%emt 0:00:58]} Nc6 {[%emt 0:02:09]} 25. Qe2 {[%emt 0:04:23]} Qe8 {[%emt 0:04:27]} 26. g4 {[%emt 0:02:04]} Qf8 {[%emt 0:00:30]} 27. Kg2 {[%emt 0:01:38]} Qg7 {[%emt 0:00:04]} 28. Bd2 {[%emt 0:01:54]} Qg6 {[%emt 0:00:18]} 29. Bc3 {[%emt 0:01:31]} a5 {[%emt 0:02:25]} 30. Rad1 {[%emt 0:02:16]} Rxd1 {[%emt 0:04:56]} 31. Rxd1 {[%emt 0:00:07]} Rxd1 {[%emt 0:00:07]} 32. Qxd1 {[%emt 0:00:05]} Qe4 {[%emt 0:00:06]} 33. b3 {[%emt 0:08:24]} Bf8 {[%emt 0:03:15]} 34. Qd2 {[%emt 0:06:58]} Ne7 {[%emt 0:01:10]} 35. Qe3 {[%emt 0:02:48]} Qa8 {[%emt 0:00:08]} 36. Kg3 {[%emt 0:08:17]} Ng6 {[%emt 0:00:21]} 37. Nd2 {[%emt 0:02:31]} Bg7 {[%emt 0:05:45]} 38. Ne4 {[%emt 0:01:08]} Nxe5 {[%emt 0:06:15]} 39. Nf6+ {[%emt 0:00:19]} Bxf6 {[%emt 0:00:05]} 40. Bxe5 {[%emt 0:00:08]} Bxe5+ {[%emt 0:00:50]} 41. Qxe5 {[%emt 0:30:16]} Qd8 {[%emt 0:30:10]} 42. Kg2 {[%emt 0:00:00]} Kh7 {[%emt 0:00:00]} 43. Qe4+ {[%emt 0:00:00]} Kg7 {[%emt 0:00:00]} 44. Qc6 {[%emt 0:00:00]} e5 {[%emt 0:00:00]} 45. Qe4 {[%emt 0:00:00]} Qd6 {[%emt 0:00:00]} 46. Qb7 {[%emt 0:00:00]} Qe6 {[%emt 0:00:00]} 47. Qe4 {[%emt 0:00:00]} h5 {[%emt 0:00:00]} 48. Kg3 {[%emt 0:00:00]} Qf6 {[%emt 0:00:00]} 49. gxh5 {[%emt 0:01:48]} Kh6 {[%emt 0:00:00]} 50. Qg4 {[%emt 0:00:57]} Qd6 {[%emt 0:00:23]} 51. Qe4 {[%emt 0:00:30]} Qe6 {[%emt 0:00:49]} 52. Qa8 {[%emt 0:00:49]} Kxh5 {[%emt 0:01:08]} 53. Qh8+ {[%emt 0:00:29]} Kg6 {[%emt 0:00:05]} 54. Qg8+ {[%emt 0:00:21]} Kf5 {[%emt 0:02:11]} 55. Qg7 {[%emt 0:01:17]} e4 {[%emt 0:01:23]} 56. Qf8 {[%emt 0:01:04]} e3 {[%emt 0:01:00]} 57. fxe3 {[%emt 0:00:26]} Qxe3+ {[%emt 0:00:04]} 58. Kg2 {[%emt 0:00:37]} Qe4+ {[%emt 0:01:19]} 59. Kg3 {[%emt 0:00:34]} Qf4+ {[%emt 0:00:04]} 60. Kg2 {[%emt 0:00:09]} Qe4+ {[%emt 0:02:46]} 61. Kg3 {[%emt 0:00:04]} Qd3+ {[%emt 0:00:42]} 62. Kg2 {[%emt 0:00:16]} f6 {[%emt 0:01:37]} 63. Qc8+ {[%emt 0:00:06]} Ke5 {[%emt 0:00:12]} 64. Qe8+ {[%emt 0:00:28]} Kf5 {[%emt 0:02:29]} 65. Qc8+ {[%emt 0:00:31]} Ke5 {[%emt 0:00:49]} 66. Qe8+ {[%emt 0:00:19]} Kf5 {[%emt 0:03:25]} 1/2-1/2